bitfinex/quotes_BTCUSD_20230114
["timestamp","ask_amount","ask_price","bid_price","bid_amount"]
[1673715911458,2.15400417,20799.0,20798.0,0.01341736]
[1673715912244,2.14348107,20799.0,20798.0,0.01341736]
[1673715912491,2.15429513,20799.0,20798.0,0.01341736]
[1673715913741,2.15420265,20799.0,20798.0,0.01341736]
[1673715913991,1.71043058,20799.0,20798.0,0.01341736]
[1673715914487,1.85420265,20799.0,20798.0,0.01341736]
[1673715914974,1.71043058,20799.0,20798.0,0.01341736]
[1673715915756,1.85420265,20799.0,20798.0,0.01341736]
[1673715916509,1.71043058,20799.0,20798.0,0.01341736]
[1673715916756,1.85420265,20799.0,20798.0,0.01341736]
[1673715917271,2.15420265,20799.0,20798.0,0.01341736]
[1673715917519,2.36986959,20799.0,20798.0,0.01341736]
[1673715918015,2.22609752,20799.0,20798.0,0.01341736]
[1673715918475,2.51345768,20799.0,20798.0,0.01341736]
[1673715918732,2.50264362,20799.0,20798.0,0.01341736]
[1673715918979,2.22628786,20799.0,20798.0,0.01341736]
[1673715919248,2.21528346,20799.0,20798.0,0.01341736]
[1673715919501,2.37086371,20799.0,20798.0,0.01341736]
[1673715920004,2.35904717,20799.0,20798.0,0.01341736]
[1673715920255,2.36899639,20799.0,20798.0,0.01341736]
[1673715921009,2.06899639,20799.0,20798.0,0.01341736]
[1673715921501,1.15225523,20799.0,20798.0,0.48598254]
[1673715921776,1.15225523,20799.0,20798.0,0.29525659]
[1673715921777,0.04690752,20799.0,20798.0,0.29525659]
[1673715922029,0.04690752,20799.0,20798.0,0.61520859]
[1673715922278,0.04690752,20799.0,20798.0,0.29525659]
[1673715922664,0.04690752,20799.0,20798.0,0.61520859]
[1673715922812,0.04690752,20799.0,20798.0,1.73073859]
[1673715923309,0.04690752,20799.0,20798.0,1.44889936]
[1673715923814,0.04690752,20799.0,20798.0,1.68458543]
[1673715924280,0.04690752,20799.0,20798.0,0.96808436]
[1673715924817,0.04690752,20799.0,20798.0,0.77731948]
[1673715932977,0.04690752,20799.0,20798.0,1.25813448]
[1673715934043,0.04690752,20799.0,20798.0,1.10423448]
[1673715935319,0.04690752,20799.0,20798.0,3.22492195]
[1673715935561,0.04690752,20799.0,20798.0,4.17217729]
[1673715935562,0.00352297,20799.0,20798.0,4.17217729]
[1673715935799,0.00352297,20799.0,20798.0,3.88550325]
[1673715936065,0.00352297,20799.0,20798.0,4.17308707]
[1673715936569,0.00098309,20803.0,20799.0,0.1]
[1673715936821,0.00098309,20803.0,20801.0,0.1]
[1673715937088,0.00098309,20803.0,20802.0,0.319952]
[1673715937328,0.49030818,20805.0,20802.0,0.319952]
[1673715937619,0.49030818,20805.0,20802.0,0.19072595]
[1673715937860,0.003,20803.0,20802.0,0.51067795]
[1673715938108,0.003,20803.0,20802.0,1.281398]
[1673715938358,0.01060876,20805.0,20802.0,0.480723]
[1673715938359,0.00859029,20804.0,20802.0,0.480723]
[1673715938605,0.00859029,20804.0,20801.0,1.038359]
[1673715938869,0.00859029,20804.0,20802.0,0.319952]
[1673715939106,0.480658,20805.0,20801.0,1.038354]
[1673715939380,0.97329827,20805.0,20802.0,0.319952]
[1673715939627,0.97329827,20805.0,20801.0,1.3652929]
[1673715939870,0.024,20804.0,20802.0,0.002]
[1673715940142,0.49263227,20805.0,20802.0,0.319952]
[1673715940374,0.49663227,20805.0,20803.0,0.31406924]
[1673715941129,0.49263227,20805.0,20803.0,0.31406924]
[1673715941383,0.51663227,20805.0,20803.0,0.31406924]
[1673715941883,0.99728527,20805.0,20800.0,0.0771]
[1673715942128,0.961398,20803.0,20801.0,0.28403134]
[1673715943571,0.965398,20803.0,20801.0,0.33203134]
[1673715944316,0.965398,20803.0,20801.0,0.048]
[1673715944560,0.00906808,20802.0,20801.0,0.048]
[1673715944816,0.97051408,20802.0,20801.0,0.048]
[1673715945067,1.66157008,20802.0,20801.0,0.048]
[1673715945870,1.45123708,20802.0,20798.0,0.61643004]
[1673715946106,1.64117749,20802.0,20801.0,0.048]
[1673715946371,1.66557008,20802.0,20801.0,0.048]
[1673715946910,0.01136175,20801.0,20798.0,0.61643004]
[1673715947174,0.961538,20800.0,20798.0,0.64183004]
[1673715947400,0.961538,20800.0,20798.0,0.53983004]
[1673715948642,0.961538,20800.0,20798.0,0.64183004]
[1673715949143,0.961538,20800.0,20798.0,0.53983004]
[1673715949412,0.968538,20800.0,20798.0,0.64183004]
[1673715949883,0.968538,20800.0,20798.0,0.64083004]
[1673715950359,0.97807137,20800.0,20798.0,0.64083004]
[1673715953889,0.97807137,20800.0,20798.0,0.39600118]
[1673715954138,0.97370606,20799.0,20798.0,0.39600118]
[1673715954881,0.97370606,20799.0,20798.0,0.29400118]
[1673715955127,1.45449806,20799.0,20798.0,0.29400118]
[1673715955402,1.46249806,20799.0,20798.0,0.38800118]
[1673715956398,1.45449806,20799.0,20798.0,0.29400118]
[1673715956697,1.46249806,20799.0,20798.0,0.38800118]
[1673715957209,0.969584,20799.0,20798.0,0.38800118]
[1673715957458,0.008,20799.0,20798.0,0.7130091]
[1673715957737,0.008,20799.0,20798.0,1.0329611]
[1673715959626,0.008,20799.0,20798.0,2.21542183]
[1673715960119,0.00592462,20799.0,20798.0,2.20108156]
[1673715960403,0.00592462,20799.0,20798.0,1.87607364]
[1673715960712,0.00592462,20799.0,20798.0,3.23926674]
[1673715961227,0.00592462,20799.0,20798.0,3.77887279]
[1673715961482,0.00592462,20799.0,20798.0,3.63530018]
[1673715961729,0.00592462,20799.0,20798.0,3.63530079]
[1673715962988,0.00592462,20799.0,20798.0,3.63530023]
[1673715963492,0.00592462,20799.0,20798.0,3.63529436]
[1673715963740,0.00592462,20799.0,20798.0,3.30548925]
[1673715964517,0.00592462,20799.0,20798.0,2.1283764]
[1673715964753,0.00592462,20799.0,20798.0,3.72008226]
[1673715965025,0.00552462,20799.0,20798.0,4.00754354]
[1673715965549,0.00552462,20799.0,20798.0,4.45028882]
[1673715965828,0.00552462,20799.0,20798.0,4.52678882]
[1673715966054,0.00052462,20799.0,20798.0,4.52678882]
[1673715966299,0.00052462,20799.0,20798.0,4.23932754]
[1673715966550,0.00052462,20799.0,20798.0,4.52705846]
[1673715967313,0.00052462,20799.0,20798.0,4.22705846]
[1673715967569,0.00052462,20799.0,20798.0,4.22705187]
[1673715969802,0.00052462,20799.0,20798.0,4.52705187]
[1673715970894,5.161e-05,20799.0,20798.0,3.93932754]
[1673715971606,5.161e-05,20799.0,20798.0,4.23932754]
[1673715972857,5.161e-05,20799.0,20798.0,3.88098617]
[1673715974905,0.01032934,20806.0,20801.0,1.922972]
[1673715975176,0.01032934,20806.0,20804.0,0.22069193]
[1673715975430,0.01032934,20806.0,20805.0,1.26642204]
[1673715975702,0.01032934,20806.0,20805.0,1.77709999]
[1673715975932,0.01032934,20806.0,20805.0,1.58637404]
[1673715975933,0.00936772,20806.0,20805.0,1.58637404]
[1673715976963,0.00936772,20806.0,20805.0,1.72737404]
[1673715977217,0.00936772,20806.0,20805.0,1.422258]
[1673715977462,0.00936772,20806.0,20805.0,1.56604993]
[1673715977723,0.00936772,20806.0,20805.0,1.66604993]
[1673715977978,0.00936772,20806.0,20805.0,1.96604993]
[1673715978231,0.00936772,20806.0,20805.0,1.72504993]
[1673715978484,0.00936772,20806.0,20805.0,1.67671807]
[1673715979243,0.00936772,20806.0,20805.0,1.19606507]
[1673715979491,0.00936772,20806.0,20805.0,1.05506507]
[1673715979753,0.00936772,20806.0,20805.0,0.57441207]
[1673715980261,0.00936772,20806.0,20805.0,0.39546007]
[1673715981020,0.00936772,20806.0,20805.0,0.71541207]
[1673715981262,0.00936772,20806.0,20805.0,0.39546007]
[1673715982041,0.00936772,20806.0,20805.0,0.71541207]
[1673715983324,0.00936772,20806.0,20805.0,1.19606507]
[1673715984101,0.00936772,20806.0,20805.0,0.71541207]
[1673715985353,0.00936772,20806.0,20805.0,1.19606507]
[1673715990814,0.00936772,20806.0,20805.0,1.67671807]
[1673715992104,0.00936772,20806.0,20805.0,1.19606507]
[1673715994311,0.00936772,20806.0,20805.0,0.71541207]
[1673715996069,0.00936772,20806.0,20805.0,0.39546007]
[1673715996311,0.00936772,20806.0,20805.0,0.141]
[1673715997771,0.00916788,20806.0,20805.0,0.141]
[1673715999754,0.02065111,20806.0,20805.0,0.141]
[1673716001471,0.00916788,20806.0,20805.0,0.460952]
[1673716001711,0.00916788,20806.0,20805.0,0.141]
[1673716001956,0.00916788,20806.0,20805.0,0.460952]
[1673716004022,0.01959587,20806.0,20805.0,0.141]
[1673716004269,0.50022587,20806.0,20805.0,0.141]
[1673716009231,0.01959587,20806.0,20805.0,0.141]
[1673716009479,0.00916788,20806.0,20805.0,0.141]
[1673716009993,0.00916788,20806.0,20805.0,0.460952]
[1673716010506,0.00916788,20806.0,20805.0,0.44830513]
[1673716010758,0.00916788,20806.0,20805.0,0.59209706]
[1673716011274,0.00916788,20806.0,20805.0,0.44830513]
[1673716011772,0.00916788,20806.0,20805.0,0.12835313]
[1673716012017,0.00916788,20806.0,20805.0,0.88158925]
[1673716012765,0.00916788,20806.0,20805.0,0.12835313]
[1673716013011,0.5006315,20806.0,20805.0,0.12835313]
[1673716013497,0.9812615,20806.0,20805.0,0.12835313]
[1673716017920,1.12502521,20806.0,20805.0,0.12835313]
[1673716018619,0.9812615,20806.0,20805.0,0.12835313]
[1673716019831,1.12502521,20806.0,20805.0,0.12835313]
[1673716020084,1.60565521,20806.0,20805.0,0.12835313]
[1673716021320,0.9812615,20806.0,20805.0,0.12835313]
[1673716023329,0.00916788,20806.0,20805.0,0.72719061]
[1673716023583,0.00916788,20806.0,20805.0,0.87098254]
[1673716023843,0.00916788,20806.0,20805.0,1.83228854]
[1673716024358,0.00916788,20806.0,20805.0,2.79356041]
[1673716024612,0.00916788,20806.0,20805.0,3.19530788]
[1673716025366,0.00916788,20806.0,20805.0,3.3393047]
[1673716025884,0.00916788,20806.0,20805.0,3.19530788]
[1673716026146,0.00916788,20806.0,20805.0,3.33930318]
[1673716026383,0.00916788,20806.0,20805.0,3.19530788]
[1673716026887,0.00916788,20806.0,20805.0,2.85864482]
[1673716027138,0.00916788,20806.0,20805.0,2.52879331]
[1673716027649,0.00916788,20806.0,20805.0,1.35183355]
[1673716027892,0.00916788,20806.0,20805.0,2.31309131]
[1673716028395,0.00916788,20806.0,20805.0,2.5287792]
[1673716028680,0.00916788,20806.0,20805.0,3.0094322]
[1673716029171,0.00916788,20806.0,20805.0,3.06113613]
[1673716029438,0.00916788,20806.0,20805.0,3.20473004]
[1673716029695,0.00916788,20806.0,20805.0,3.46435828]
[1673716030956,0.00916788,20806.0,20805.0,3.17677443]
[1673716032247,0.00916788,20806.0,20805.0,3.32075426]
[1673716032777,0.00916788,20806.0,20805.0,3.32084543]
[1673716033280,0.00916788,20806.0,20805.0,2.99016485]
[1673716033525,0.0090628,20806.0,20805.0,2.99016485]
[1673716034035,0.0090628,20806.0,20805.0,1.8132192]
[1673716034771,0.0090628,20806.0,20805.0,2.99016539]
[1673716035306,0.0090628,20806.0,20805.0,2.51484926]
[1673716035533,0.0090628,20806.0,20805.0,3.46970071]
[1673716035768,0.0090628,20806.0,20805.0,3.25401282]
[1673716036033,0.0090628,20806.0,20805.0,3.46975299]
[1673716036278,0.0090628,20806.0,20805.0,3.68569806]
[1673716036521,0.0090628,20806.0,20805.0,3.99044053]
[1673716040811,0.0090628,20806.0,20805.0,3.70285668]
[1673716041638,0.0090628,20806.0,20805.0,3.36614128]
[1673716041894,0.0090628,20806.0,20805.0,3.03549457]
[1673716042416,0.0090628,20806.0,20805.0,3.36585797]
[1673716042668,0.0090628,20806.0,20805.0,3.3656702]
[1673716042935,0.0090628,20806.0,20805.0,3.22173888]
[1673716043451,0.0090628,20806.0,20805.0,3.36567101]
[1673716043995,0.0090628,20806.0,20805.0,3.36566362]
[1673716044495,0.0090628,20806.0,20805.0,3.22173888]
[1673716044760,0.0090628,20806.0,20805.0,3.36566399]
[1673716045274,0.0090628,20806.0,20805.0,3.03548208]
[1673716045533,0.0090628,20806.0,20805.0,3.36598871]
[1673716046313,0.0090628,20806.0,20805.0,3.03548208]
[1673716046954,0.0090628,20806.0,20805.0,2.82005193]
[1673716047461,0.0090628,20806.0,20805.0,3.36651488]
[1673716047968,0.0090628,20806.0,20805.0,3.22258977]
[1673716048239,0.0090628,20806.0,20805.0,3.70324277]
[1673716048497,0.0090628,20806.0,20805.0,3.99082662]
[1673716049783,0.0090628,20806.0,20805.0,3.70324277]
[1673716050555,0.0090628,20806.0,20805.0,3.99082662]
[1673716051990,0.75273321,20806.0,20805.0,0.27228229]
[1673716052248,0.75273321,20806.0,20805.0,0.12835313]
[1673716052249,1.31622358,20806.0,20805.0,0.12835313]
[1673716052505,1.41194065,20806.0,20805.0,0.12835313]
[1673716052774,1.61718645,20806.0,20805.0,0.12835313]
[1673716053056,1.92768367,20806.0,20801.0,0.28148272]
[1673716053306,0.83905076,20806.0,20805.0,0.09841]
[1673716053567,0.5096928,20806.0,20805.0,0.09841]
[1673716054068,0.4896928,20806.0,20805.0,0.08841]
[1673716054356,0.4906928,20806.0,20805.0,0.08841]
[1673716054663,0.0090628,20806.0,20805.0,0.08841]
[1673716054852,0.0290628,20806.0,20805.0,0.09841]
[1673716055630,0.0290628,20806.0,20805.0,0.01]
[1673716055881,0.5096928,20806.0,20805.0,0.01]
[1673716061762,0.5096928,20806.0,20805.0,0.2847082]
[1673716062006,0.0290628,20806.0,20805.0,0.2847082]
[1673716062774,0.0290628,20806.0,20805.0,0.6046602]
[1673716063044,0.0290628,20806.0,20805.0,0.2847082]
[1673716063809,0.0290628,20806.0,20805.0,0.6046602]
[1673716064058,0.57152171,20806.0,20805.0,0.2847082]
[1673716064314,0.0290628,20806.0,20805.0,0.2847082]
[1673716064575,0.0290628,20806.0,20805.0,0.01]
[1673716064576,0.0405532,20806.0,20805.0,0.01]
[1673716065327,1.0018132,20806.0,20805.0,0.01]
[1673716066624,1.6366432,20806.0,20805.0,0.01]
[1673716066880,1.8469762,20806.0,20805.0,0.01]
[1673716067137,1.6366432,20806.0,20805.0,0.01]
[1673716067532,1.99039375,20806.0,20805.0,0.01]
[1673716067709,1.6366432,20806.0,20805.0,0.01]
[1673716068221,1.78006075,20806.0,20805.0,0.01]
[1673716068475,1.99039375,20806.0,20805.0,0.01]
[1673716068751,1.8469762,20806.0,20805.0,0.01]
[1673716072434,1.4824432,20806.0,20805.0,0.01]
[1673716074031,1.2121462,20806.0,20805.0,0.01]
[1673716074240,1.0018132,20806.0,20805.0,0.01]
[1673716077610,1.0018132,20806.0,20805.0,0.00991103]
[1673716077859,0.0290628,20806.0,20805.0,0.00991103]
[1673716078109,0.0290628,20806.0,20805.0,0.60201087]
[1673716078647,0.0290628,20806.0,20805.0,0.00991103]
[1673716079185,0.0290628,20806.0,20805.0,0.25633289]
[1673716079421,0.0290628,20806.0,20805.0,0.57628489]
[1673716080431,0.0290628,20806.0,20805.0,0.73698589]
[1673716081980,0.0290628,20806.0,20805.0,0.73487585]
[1673716082470,0.0290628,20806.0,20805.0,1.05482785]
[1673716083801,0.0290628,20806.0,20805.0,3.08182353]
[1673716084055,0.0290628,20806.0,20805.0,2.86587846]
[1673716084315,0.0290628,20806.0,20805.0,3.52535828]
[1673716084574,0.0290628,20806.0,20805.0,4.25350967]
[1673716084575,0.00294296,20806.0,20805.0,4.25350967]
[1673716084836,0.00731068,20807.0,20806.0,0.1]
[1673716085092,0.00731068,20807.0,20806.0,3.27760162]
[1673716085396,0.00731068,20807.0,20806.0,3.59755362]
[1673716085673,0.0104612,20808.0,20807.0,0.00677623]
[1673716085903,0.0104612,20808.0,20807.0,0.73214763]
[1673716086148,0.0104612,20808.0,20807.0,4.50398453]
[1673716086680,0.0104612,20808.0,20807.0,4.64198453]
[1673716087435,0.0104612,20808.0,20807.0,4.68845967]
[1673716087688,0.0104612,20808.0,20807.0,4.04120233]
[1673716087936,0.0114612,20808.0,20807.0,4.18020233]
[1673716088182,0.0114612,20808.0,20807.0,4.17809229]
[1673716088442,0.0124612,20808.0,20807.0,3.41677871]
[1673716090235,0.0124612,20808.0,20807.0,4.0628982]
[1673716091000,0.0124612,20808.0,20807.0,4.05437661]
[1673716091244,0.0124612,20808.0,20807.0,3.76731558]
[1673716091506,0.0124612,20808.0,20807.0,3.76520554]
[1673716091764,0.0124612,20808.0,20807.0,3.40616867]
[1673716092022,0.0124612,20808.0,20807.0,3.86927345]
[1673716092282,0.0124612,20808.0,20807.0,4.23638458]
[1673716092785,0.0124612,20808.0,20807.0,3.87777345]
[1673716093541,0.0124612,20808.0,20807.0,3.77327627]
[1673716094291,0.0124612,20808.0,20807.0,3.70156574]
[1673716094547,0.0124612,20808.0,20807.0,3.91664408]
[1673716095068,0.0124612,20808.0,20807.0,3.70156574]
[1673716095337,0.0124612,20808.0,20807.0,4.06017334]
[1673716095604,0.00088173,20808.0,20807.0,3.77327627]
[1673716095890,0.00088173,20808.0,20807.0,4.23642278]
[1673716096365,0.00088173,20808.0,20807.0,4.52304999]
[1673716096622,0.00088173,20808.0,20807.0,4.23642278]
[1673716097645,0.00088173,20808.0,20807.0,4.71702978]
[1673716098148,0.00088173,20808.0,20807.0,4.35842218]
[1673716098410,0.00088173,20808.0,20807.0,4.71656945]
[1673716098662,0.0104612,20809.0,20808.0,0.00083571]
[1673716098929,0.0104612,20809.0,20808.0,5.10747559]
[1673716099187,0.0104612,20809.0,20808.0,5.42769459]
[1673716099743,0.0104612,20809.0,20808.0,5.06958851]
[1673716100242,1.2e-06,20809.0,20808.0,5.06958851]
[1673716100745,1.2e-06,20809.0,20808.0,5.41598851]
[1673716101039,1.2e-06,20809.0,20808.0,5.55498851]
[1673716101528,0.33136192,20812.0,20808.0,5.55498851]
[1673716101818,0.18247705,20812.0,20811.0,0.2307]
[1673716102101,0.01261034,20821.0,20812.0,0.18247]
[1673716102346,0.20821119,20821.0,20814.0,0.14299624]
[1673716102593,0.01026652,20819.0,20816.0,0.1]
[1673716102843,0.02341832,20821.0,20817.0,1.449595]
[1673716103104,0.02341832,20821.0,20818.0,0.31974]
[1673716103355,0.01261034,20821.0,20819.0,1.44099]
[1673716103613,0.01261034,20821.0,20820.0,0.313394]
[1673716103872,0.02447882,20821.0,20820.0,0.313394]
[1673716104376,0.01261034,20821.0,20820.0,0.313394]
[1673716104884,0.01261034,20821.0,20820.0,0.324394]
[1673716105669,0.01261034,20821.0,20820.0,0.80310692]
[1673716107196,0.01261034,20821.0,20820.0,1.12614166]
[1673716107722,0.01261034,20821.0,20820.0,1.60644866]
[1673716107971,0.01261034,20821.0,20820.0,1.58341392]
[1673716108235,0.01261034,20821.0,20820.0,1.66031392]
[1673716108486,0.01261034,20821.0,20820.0,1.66881392]
[1673716108760,0.01261034,20821.0,20820.0,1.76881392]
[1673716109038,0.01261034,20821.0,20820.0,1.7667053]
[1673716109285,0.01261034,20821.0,20820.0,1.7666053]
[1673716110794,0.01261034,20821.0,20820.0,1.5795075]
[1673716111811,0.01261034,20821.0,20820.0,0.6188935]
[1673716112100,0.01261034,20821.0,20820.0,0.32017676]
[1673716112364,0.01261034,20821.0,20820.0,0.011]
[1673716112365,0.02119585,20821.0,20820.0,0.011]
[1673716113143,0.50147985,20821.0,20820.0,0.011]
[1673716113412,0.98176385,20821.0,20820.0,0.011]
[1673716113684,0.97317834,20821.0,20820.0,0.011]
[1673716113978,1.04977834,20821.0,20820.0,0.011]
[1673716114449,1.27065234,20821.0,20820.0,0.011]
[1673716115474,1.64695234,20821.0,20820.0,0.011]
[1673716116003,1.64695234,20821.0,20814.0,0.91764054]
[1673716116004,1.64695234,20821.0,20814.0,0.43721254]
[1673716116267,0.076,20819.0,20814.0,0.43721254]
[1673716116548,0.66630441,20818.0,20814.0,0.43721254]
[1673716116764,0.18594041,20817.0,20814.0,0.43721254]
[1673716117020,0.18594041,20817.0,20814.0,0.57621254]
[1673716117273,0.480369,20818.0,20815.0,0.62999418]
[1673716117540,0.481369,20818.0,20815.0,0.32073518]
[1673716117790,0.480369,20818.0,20815.0,0.32073518]
[1673716118041,0.001,20817.0,20815.0,0.32073518]
[1673716118299,0.001,20817.0,20816.0,1.39662681]
[1673716118800,0.001,20817.0,20816.0,1.70587281]
[1673716119050,0.00897583,20817.0,20816.0,1.39662681]
[1673716119811,0.00897583,20817.0,20816.0,1.53562681]
[1673716119812,0.00997583,20817.0,20816.0,1.53562681]
[1673716120070,0.00997583,20817.0,20816.0,0.448246]
[1673716120332,0.001,20817.0,20816.0,1.25166277]
[1673716120628,0.001,20817.0,20816.0,1.73206177]
[1673716123452,0.536095,20820.0,20817.0,0.37499568]
[1673716123453,0.4481,20820.0,20817.0,0.37499568]
[1673716123716,0.4481,20820.0,20818.0,0.96122059]
[1673716124001,0.4481,20820.0,20819.0,0.32266401]
[1673716124252,0.4481,20820.0,20819.0,1.11218901]
[1673716124516,0.02140829,20821.0,20819.0,1.11218901]
[1673716124768,0.02140829,20821.0,20819.0,0.80299401]
[1673716125807,0.001,20820.0,20819.0,0.80299401]
[1673716126063,0.02140829,20821.0,20819.0,0.80299401]
[1673716126322,0.02140829,20821.0,20820.0,0.309176]
[1673716126323,0.01261034,20821.0,20820.0,0.309176]
[1673716126604,0.01261034,20821.0,20819.0,0.80297501]
[1673716126860,0.01261034,20821.0,20820.0,0.309175]
[1673716127087,0.01261034,20821.0,20820.0,0.304175]
[1673716127342,0.01261034,20821.0,20820.0,0.310175]
[1673716127602,0.01261034,20821.0,20820.0,0.392585]
[1673716127849,0.01261034,20821.0,20820.0,2.133506]
[1673716128109,0.01261034,20821.0,20820.0,2.43975182]
[1673716128366,0.01261034,20821.0,20820.0,2.23975182]
[1673716128617,0.01261034,20821.0,20820.0,3.50021954]
[1673716128865,0.01261034,20821.0,20820.0,3.19397372]
[1673716129130,0.01261034,20821.0,20820.0,3.34295145]
[1673716129444,0.01261034,20821.0,20820.0,3.35145145]
[1673716129898,0.01261034,20821.0,20820.0,4.02532529]
[1673716130145,0.01261034,20821.0,20820.0,3.56591197]
[1673716130404,0.01261034,20821.0,20820.0,3.94356144]
[1673716130650,0.01261034,20821.0,20820.0,4.54586178]
[1673716130910,0.01261034,20821.0,20820.0,4.68881614]
[1673716131183,0.0117247,20822.0,20821.0,0.18930009]
[1673716131443,0.0117247,20822.0,20821.0,3.1589414]
[1673716131713,0.0117247,20822.0,20821.0,3.4589414]
[1673716132040,0.0117247,20822.0,20821.0,3.45785892]
[1673716132221,0.0117247,20822.0,20821.0,3.08040184]
[1673716132473,0.0117247,20822.0,20821.0,3.53376312]
[1673716132726,0.0117247,20822.0,20821.0,3.67276312]
[1673716132972,0.0117247,20822.0,20821.0,3.52944347]
[1673716133222,0.0117247,20822.0,20821.0,4.27480407]
[1673716133479,0.0117247,20822.0,20821.0,4.41723948]
[1673716133733,0.0117247,20822.0,20821.0,4.0598246]
[1673716134235,0.0117247,20822.0,20821.0,4.07422158]
[1673716134480,0.0117247,20822.0,20821.0,3.93160113]
[1673716134736,0.0117247,20822.0,20821.0,4.15355608]
[1673716134996,0.0117247,20822.0,20821.0,4.41217397]
[1673716135518,0.0117247,20822.0,20821.0,4.03561269]
[1673716136029,0.0117247,20822.0,20821.0,4.41351307]
[1673716136275,0.0117247,20822.0,20821.0,4.15489532]
[1673716136509,0.0117247,20822.0,20821.0,4.89937724]
[1673716136758,0.0117247,20822.0,20821.0,4.33996392]
[1673716137014,0.0117247,20822.0,20821.0,4.07322916]
[1673716137505,0.0117247,20822.0,20821.0,1.54708747]
[1673716137506,0.19766511,20822.0,20821.0,1.54708747]
[1673716137760,0.02262659,20822.0,20821.0,0.443157]
[1673716138019,0.02262659,20822.0,20821.0,0.139]
[1673716138752,0.02262659,20822.0,20821.0,0.443157]
[1673716138753,0.0117247,20822.0,20821.0,0.443157]
[1673716141445,0.0117247,20822.0,20821.0,0.139]
[1673716142197,0.02216357,20822.0,20821.0,0.139]
[1673716143697,0.65532457,20822.0,20821.0,0.139]
[1673716144449,0.88119857,20822.0,20821.0,0.139]
[1673716144759,0.65532457,20822.0,20821.0,0.139]
[1673716145007,0.65532457,20822.0,20818.0,0.960681]
[1673716145256,0.76616498,20822.0,20821.0,0.079]
[1673716145523,0.65652457,20822.0,20821.0,0.079]
[1673716146275,0.65652457,20822.0,20818.0,0.87296208]
[1673716146523,0.076,20821.0,20818.0,0.73396108]
[1673716146801,0.26194041,20821.0,20818.0,1.21430108]
[1673716147080,0.076,20821.0,20818.0,1.35766355]
[1673716147295,0.076,20821.0,20818.0,1.21430108]
[1673716147552,0.08621119,20821.0,20818.0,1.35766355]
[1673716147850,0.08621119,20821.0,20819.0,0.304188]
[1673716148117,0.08621119,20821.0,20818.0,1.21430108]
[1673716148333,0.00993888,20820.0,20818.0,1.35330008]
[1673716148632,0.00993888,20820.0,20819.0,0.304191]
[1673716148898,0.00993888,20820.0,20819.0,0.14]
[1673716149162,0.00993888,20820.0,20818.0,1.21431508]
[1673716149428,0.01093888,20820.0,20819.0,0.304192]
[1673716149919,0.01193888,20820.0,20819.0,0.14]
[1673716150175,0.00993888,20820.0,20818.0,0.74417954]
[1673716150923,0.00993888,20820.0,20818.0,6e-05]
[1673716151194,0.01093888,20820.0,20818.0,0.13906]
[1673716152770,0.01015582,20819.0,20818.0,0.13906]
[1673716153771,1.03676,20819.0,20818.0,0.13906]
[1673716154026,1.03676,20819.0,20818.0,6e-05]
[1673716154027,1.819764,20819.0,20818.0,6e-05]
[1673716154287,2.119764,20819.0,20818.0,6e-05]
[1673716154545,2.58117732,20819.0,20818.0,0.13906]
[1673716154797,2.58117732,20819.0,20818.0,0.1389515]
[1673716155305,2.57917732,20819.0,20813.0,0.00666171]
[1673716155551,0.0761,20815.0,20813.0,0.00666171]
[1673716155830,0.225874,20814.0,20813.0,0.00666171]
[1673716156089,0.26204041,20815.0,20813.0,0.00666171]
[1673716156369,0.0761,20815.0,20813.0,0.26106551]
[1673716156898,0.0761,20815.0,20813.0,0.00666171]
[1673716157178,0.0761,20815.0,20814.0,0.304282]
[1673716157472,0.0771,20815.0,20814.0,0.304282]
[1673716157672,0.0771,20815.0,20814.0,0.784727]
[1673716158200,0.0761,20815.0,20814.0,0.784727]
[1673716158459,0.0761,20815.0,20814.0,0.014]
[1673716158727,1.31046339,20815.0,20814.0,0.014]
[1673716158981,1.35039698,20815.0,20814.0,0.014]
[1673716162783,0.378774,20815.0,20814.0,0.014]
[1673716163034,0.378774,20815.0,20814.0,0.27914701]
[1673716163035,0.1529,20815.0,20814.0,0.27914701]
[1673716167675,0.917692,20817.0,20814.0,1.24003701]
[1673716167676,0.0763,20817.0,20814.0,1.24003701]
[1673716167926,0.0763,20817.0,20815.0,0.61298123]
[1673716168173,0.0763,20817.0,20816.0,0.304247]
[1673716168444,0.0763,20817.0,20816.0,0.784646]
[1673716168754,0.01115363,20817.0,20815.0,0.78911823]
[1673716168985,0.557145,20819.0,20814.0,0.494424]
[1673716168986,0.01028667,20816.0,20814.0,0.494424]
[1673716169237,0.01028667,20816.0,20814.0,0.494434]
[1673716169755,0.01028667,20816.0,20814.0,0.480434]
[1673716170031,0.01028667,20816.0,20815.0,0.002]
[1673716170529,0.01028667,20816.0,20814.0,0.480434]
[1673716170785,0.01028667,20816.0,20814.0,0.78740118]
[1673716171031,0.01028667,20816.0,20814.0,0.77340118]
[1673716171291,0.03628667,20816.0,20815.0,0.002]
[1673716171551,0.03628667,20816.0,20814.0,0.77340118]
[1673716171552,0.01028667,20816.0,20814.0,0.77340118]
[1673716171803,0.01028667,20816.0,20814.0,0.78740118]
[1673716172061,0.0763,20815.0,20814.0,0.014]
[1673716172318,0.782596,20815.0,20814.0,0.014]
[1673716172608,1.037144,20815.0,20814.0,0.014]
[1673716173095,1.04886274,20815.0,20813.0,0.00166171]
[1673716173347,0.56844074,20815.0,20814.0,0.014]
[1673716174111,0.56844074,20815.0,20813.0,0.00166171]
[1673716174358,0.56944074,20815.0,20813.0,0.08766171]
[1673716174624,0.56944074,20815.0,20813.0,0.00166171]
[1673716174877,0.56944074,20815.0,20814.0,0.014]
[1673716175125,0.56944074,20815.0,20813.0,0.00166171]
[1673716175126,0.56844074,20815.0,20813.0,0.00166171]
[1673716175662,0.01095449,20814.0,20813.0,0.00166171]
[1673716176168,0.01095449,20814.0,20813.0,0.08766171]
[1673716176931,0.01095449,20814.0,20812.0,0.00332342]
[1673716176932,0.49139949,20814.0,20812.0,0.00332342]
[1673716177185,0.01195449,20814.0,20813.0,0.086]
[1673716177923,0.01095449,20814.0,20812.0,0.74021227]
[1673716178180,0.01295449,20814.0,20812.0,0.88021227]
[1673716178427,0.01295449,20814.0,20812.0,0.74021227]
[1673716178674,0.01395449,20814.0,20813.0,0.086]
[1673716179671,0.01095449,20814.0,20812.0,0.25972127]
[1673716179926,0.002,20814.0,20812.0,0.88021027]
[1673716180178,0.0763,20815.0,20812.0,0.74021027]
[1673716180396,0.08757673,20815.0,20812.0,0.74021027]
[1673716180682,0.001,20814.0,20813.0,0.086]
[1673716181183,0.08757673,20815.0,20812.0,0.74021027]
[1673716181425,0.08957673,20815.0,20812.0,0.88021027]
[1673716181677,0.08757673,20815.0,20812.0,0.74021027]
[1673716182198,0.1529,20813.0,20812.0,0.00332342]